bitfinex/quotes_SOLUSD_20250815
["timestamp","ask_amount","ask_price","bid_price","bid_amount"]
[1755232515499,3.42925652,195.75,195.72,0.03]
[1755232515676,131.9,195.76,195.72,0.7]
[1755232515997,131.9,195.76,195.72,8.91440566]
[1755232516171,0.66,195.79,195.73,8.88440566]
[1755232516370,3.4289182,195.78,195.73,8.88440566]
[1755232516697,11.64332386,195.78,195.73,0.67]
[1755232516868,12.30332386,195.78,195.73,0.67]
[1755232517070,12.30332386,195.78,195.74,0.67]
[1755232517071,3.4289182,195.78,195.74,0.67]
[1755232517269,131.9,195.79,195.74,0.67]
[1755232517469,131.96,195.8,195.74,8.21440566]
[1755232517678,131.96,195.8,195.75,0.67]
[1755232517679,140.17440566,195.8,195.75,0.67]
[1755232517884,140.83440566,195.8,195.75,0.67]
[1755232518391,0.66,195.79,195.73,13.99348449]
[1755232518792,8.21440566,195.75,195.72,0.03]
[1755232518968,8.87440566,195.74,195.72,0.03]
[1755232519169,3.42866906,195.77,195.72,0.03]
[1755232519372,0.66,195.77,195.72,0.7]
[1755232519596,8.87440566,195.77,195.72,0.7]
[1755232519775,0.66,195.77,195.72,0.7]
[1755232519986,8.87440566,195.77,195.73,0.03]
[1755232521071,8.87440566,195.77,195.73,5.13907883]
[1755232521275,8.21440566,195.78,195.73,5.80907883]
[1755232521498,8.87440566,195.78,195.73,5.80907883]
[1755232522189,132.62,195.8,195.74,8.88440566]
[1755232522493,0.06,195.8,195.76,8.21440566]
[1755232522695,0.06,195.8,195.77,8.21440566]
[1755232523001,0.06,195.8,195.79,8.21440566]
[1755232523492,0.06,195.8,195.79,8.88440566]
[1755232525279,0.06,195.8,195.79,13.99191881]
[1755232527317,1e-08,195.81,195.8,15.10621557]
[1755232527515,1e-08,195.81,195.8,60.39062123]
[1755232527981,1e-08,195.81,195.8,45.28440566]
[1755232528183,1e-08,195.81,195.8,44.61440566]
[1755232528399,1e-08,195.81,195.8,36.4]
[1755232528782,0.66000001,195.81,195.8,36.4]
[1755232529694,0.66000001,195.81,195.78,5.10776244]
[1755232531507,1e-08,195.81,195.78,5.10776244]
[1755232531810,1e-08,195.81,195.79,0.7]
[1755232532102,1e-08,195.81,195.78,14.0221681]
[1755232534111,1e-08,195.81,195.78,5.10776244]
[1755232534405,0.71000001,195.81,195.79,36.38]
[1755232538022,8.92440566,195.8,195.79,36.38]
[1755232538579,8.92440566,195.8,195.78,0.03]
[1755232538818,8.92440566,195.79,195.78,0.03]
[1755232542198,0.71,195.79,195.78,0.03]
[1755232542502,8.92440566,195.79,195.78,0.03]
[1755232543494,0.71,195.79,195.78,0.03]
[1755232543697,8.92440566,195.79,195.78,0.03]
[1755232544205,17.45891966,195.79,195.78,0.03]
[1755232544411,53.77891966,195.79,195.78,0.03]
[1755232549123,48.67140651,195.79,195.78,0.03]
[1755232550293,45.24440566,195.79,195.78,0.03]
[1755232550491,131.90000001,195.81,195.78,0.73]
[1755232550709,131.90000001,195.81,195.78,0.03]
[1755232551314,140.82440567,195.81,195.78,0.03]
[1755232553824,131.90000001,195.81,195.78,0.73]
[1755232556026,140.82440567,195.81,195.78,0.03]
[1755232558509,131.90000001,195.81,195.78,0.03]
[1755232558715,140.82440567,195.81,195.78,0.03]
[1755232559224,140.11440567,195.81,195.78,0.03]
[1755232559700,140.82440567,195.81,195.78,0.03]
[1755232560320,8.21440566,195.79,195.78,0.03]
[1755232560810,8.92440566,195.79,195.78,0.03]
[1755232561192,12.35635712,195.79,195.78,0.03]
[1755232561619,17.46387027,195.79,195.78,0.03]
[1755232564912,9.24946461,195.79,195.78,0.03]
[1755232565215,17.46387027,195.79,195.78,0.03]
[1755232566100,32.57008584,195.79,195.78,0.03]
[1755232567315,17.46387027,195.79,195.78,0.03]
[1755232567524,3.43195146,195.79,195.78,0.03]
[1755232567698,36.22000001,195.81,195.78,0.75]
[1755232567894,1e-08,195.81,195.78,0.75]
[1755232568098,3.43094356,195.81,195.78,14.07216835]
[1755232568309,1e-08,195.81,195.79,8.93440566]
[1755232568505,1e-08,195.81,195.8,0.72]
[1755232570419,1e-08,195.81,195.8,14.04165795]
[1755232570725,1e-08,195.81,195.79,5.10749348]
[1755232571609,1e-08,195.81,195.79,5.82749348]
[1755232574317,1e-08,195.81,195.79,5.10749348]
[1755232577433,1e-08,195.81,195.78,5.13777403]
[1755232577848,1e-08,195.81,195.79,8.93440566]
[1755232578344,1e-08,195.81,195.8,0.72]
[1755232578515,1e-08,195.81,195.8,8.93440566]
[1755232579616,1e-08,195.81,195.8,14.04165795]
[1755232580201,1e-08,195.81,195.8,5.10725229]
[1755232580812,1e-08,195.81,195.78,42.03755337]
[1755232582630,8.93440567,195.81,195.78,41.31755337]
[1755232583014,8.93440567,195.81,195.78,36.21]
[1755232583325,8.93440567,195.81,195.78,5.13765604]
[1755232583326,1e-08,195.81,195.78,5.13765604]
[1755232583517,1e-08,195.81,195.79,0.72]
[1755232583914,1e-08,195.81,195.8,0.72]
[1755232584134,1e-08,195.81,195.8,14.04165795]
[1755232587536,1e-08,195.81,195.8,29.65859874]
[1755232587841,1e-08,195.81,195.8,29.14787352]
[1755232589913,1e-08,195.81,195.8,29.65859874]
[1755232590522,1e-08,195.81,195.8,31.70416374]
[1755232590726,1e-08,195.81,195.8,31.19343852]
[1755232590936,1e-08,195.81,195.8,7.15281729]
[1755232591629,1e-08,195.81,195.8,5.10725229]
[1755232592945,1e-08,195.81,195.8,5.82725229]
[1755232593341,1e-08,195.81,195.8,14.04165795]
[1755232594753,1e-08,195.81,195.8,5.10725229]
[1755232595455,0.71000001,195.81,195.79,41.3174712]
[1755232595619,1e-08,195.81,195.79,41.3174712]
[1755232595814,0.71,195.8,195.79,36.21]
[1755232596514,8.92440566,195.8,195.79,36.21]
[1755232596823,8.92440566,195.8,195.79,0.03]
[1755232599725,12.35505691,195.8,195.79,0.03]
[1755232600132,8.92440566,195.8,195.79,0.03]
[1755232600443,1e-08,195.81,195.79,0.03]
[1755232600821,8.21440567,195.81,195.79,0.03]
[1755232601033,8.92440566,195.8,195.79,0.03]
[1755232601938,17.46159033,195.8,195.79,0.03]
[1755232602328,32.5678059,195.8,195.79,0.03]
[1755232602545,32.5678059,195.8,195.78,0.03]
[1755232602749,15.10621557,195.78,195.76,0.03]
[1755232603045,47.84433804,195.77,195.76,0.03]
[1755232603254,48.55433804,195.77,195.76,0.03]
[1755232603430,15.10621557,195.76,195.71,0.03]
[1755232603640,8.21440566,195.74,195.71,0.03]
[1755232603959,11.64433804,195.74,195.71,0.03]
[1755232604332,12.35433804,195.74,195.71,0.03]
[1755232604943,8.92440566,195.74,195.71,0.03]
[1755232605362,17.46315585,195.74,195.71,0.03]
[1755232605551,15.10621557,195.73,195.71,0.03]
[1755232605729,8.21440566,195.71,195.7,0.03]
[1755232606249,8.92440566,195.71,195.7,0.03]
[1755232606448,12.35029657,195.71,195.7,0.03]
[1755232606952,15.10621557,195.7,195.68,0.03]
[1755232607135,8.21440566,195.69,195.68,0.03]
[1755232607338,17.46041972,195.69,195.68,0.03]
[1755232608025,14.03452881,195.69,195.68,0.03]
[1755232608645,8.92440566,195.69,195.68,0.03]
[1755232609642,14.03452881,195.69,195.68,0.03]
[1755232610961,50.25452881,195.69,195.68,0.03]
[1755232611756,131.9,195.71,195.68,0.03]
[1755232612056,140.11440566,195.71,195.68,0.75]
[1755232612238,8.21440566,195.7,195.68,0.75]
[1755232613458,8.21440566,195.7,195.68,0.03]
[1755232613655,8.92440566,195.69,195.68,0.03]
[1755232613853,8.21440566,195.69,195.68,0.03]
[1755232615943,8.92440566,195.69,195.68,0.03]
[1755232616148,40.03452881,195.69,195.68,0.03]
[1755232616760,14.03452881,195.69,195.68,0.03]
[1755232617153,14.03452881,195.69,195.66,0.03]
[1755232617154,41.10621557,195.67,195.66,0.03]
[1755232617367,85.56062123,195.67,195.64,0.03]
[1755232617555,8.92440566,195.66,195.64,0.03]
[1755232617740,15.10621557,195.65,195.63,0.03]
[1755232617945,49.56583481,195.64,195.55,5.8335686]
[1755232618272,34.21440566,195.63,195.55,5.8335686]
[1755232618563,34.92440566,195.63,195.55,5.8335686]
[1755232618742,40.05119959,195.63,195.55,5.8335686]
[1755232618942,45.16289002,195.63,195.55,5.8335686]
[1755232620158,45.16289002,195.63,195.57,5.11325867]
[1755232621372,39.34119959,195.63,195.58,0.69]
[1755232621670,39.99119959,195.63,195.58,0.69]
[1755232621864,171.89119959,195.63,195.58,0.69]
[1755232622662,171.89119959,195.63,195.59,0.69]
[1755232622663,171.24119959,195.63,195.59,0.69]
[1755232623868,176.35289002,195.63,195.58,0.03]
[1755232624045,177.00289002,195.63,195.58,0.03]
[1755232624246,171.24119959,195.63,195.58,0.72]
[1755232624441,171.24119959,195.63,195.6,0.03]
[1755232625546,171.89119959,195.63,195.6,0.03]
[1755232626867,177.00289002,195.63,195.6,0.03]
[1755232627969,45.10289002,195.63,195.6,0.03]
[1755232629063,19.10289002,195.63,195.6,0.03]
[1755232637585,55.32289002,195.63,195.6,0.03]
[1755232637786,58.73417052,195.63,195.6,0.03]
[1755232638770,22.51417052,195.63,195.6,0.03]
[1755232638977,58.73417052,195.63,195.6,0.03]
[1755232639971,22.51417052,195.63,195.6,0.03]
[1755232640154,58.73417052,195.63,195.6,0.03]
[1755232640658,53.632412,195.63,195.6,0.03]
[1755232641509,17.412412,195.63,195.6,0.03]
[1755232641672,53.632412,195.63,195.6,0.03]
[1755232643284,52.982412,195.63,195.6,0.03]
[1755232644578,44.74297093,195.63,195.6,0.03]
[1755232644782,47.87072157,195.63,195.6,0.72]
[1755232645477,11.65072157,195.63,195.6,0.72]
[1755232645676,47.87072157,195.63,195.6,0.72]
[1755232646689,3.4112805,195.63,195.62,0.72]
[1755232646993,11.65072157,195.63,195.62,0.03]
[1755232647191,47.87072157,195.63,195.62,0.03]
[1755232647567,48.52072157,195.63,195.62,0.03]
[1755232647786,47.87072157,195.63,195.62,0.03]
[1755232648102,47.87072157,195.63,195.62,0.72]
[1755232648879,47.87072157,195.63,195.62,0.03]
[1755232651004,48.54072157,195.63,195.62,0.03]
[1755232651205,53.652412,195.63,195.62,0.03]
[1755232652786,47.87072157,195.63,195.62,0.03]
[1755232653303,47.87072157,195.63,195.62,0.73]
[1755232654409,47.87072157,195.63,195.62,0.03]
[1755232654992,48.54072157,195.63,195.62,0.03]
[1755232655218,47.87072157,195.63,195.62,0.03]
[1755232655510,44.45944107,195.63,195.62,0.73]
[1755232656009,36.22,195.63,195.62,0.03]
[1755232656311,44.45944107,195.63,195.62,0.73]
[1755232656810,44.45944107,195.63,195.62,0.03]
[1755232657306,11.68019826,195.63,195.62,0.03]
[1755232658113,8.23944107,195.63,195.62,0.03]
[1755232658810,36.2,195.64,195.62,0.73]
[1755232659107,44.43944107,195.64,195.62,0.03]
[1755232659300,44.43944107,195.64,195.62,0.73]
[1755232660312,3.44484894,195.63,195.62,0.73]
[1755232661187,3.44484894,195.63,195.62,13.38139281]
[1755232661411,0.06,195.65,195.62,13.38139281]
[1755232661605,0.06,195.65,195.64,8.23944107]
[1755232662210,0.06,195.65,195.64,8.93944107]
[1755232662392,0.06,195.67,195.64,8.93944107]
[1755232662393,0.06,195.67,195.64,24.04565664]
[1755232662587,0.06,195.67,195.66,8.23944107]
[1755232663201,0.06,195.67,195.66,8.93944107]
[1755232663397,0.06,195.67,195.66,14.05034774]
[1755232665007,1e-08,195.67,195.66,29.15656331]
[1755232673319,1e-08,195.67,195.66,27.372253]
[1755232675223,1e-08,195.67,195.66,27.602253]
[1755232676706,0.06,195.69,195.67,15.10621557]
[1755232676707,1e-08,195.69,195.67,15.10621557]
[1755232676900,1e-08,195.69,195.68,60.03669507]
[1755232677217,1e-08,195.71,195.69,15.10621557]
[1755232677417,1e-08,195.71,195.7,28.45551867]
[1755232677610,1e-08,195.71,195.7,28.68551867]
[1755232679009,1e-08,195.71,195.7,29.19650487]
[1755232679315,0.06,195.73,195.7,29.19650487]
[1755232679316,0.06,195.75,195.72,5.10933987]
[1755232679619,0.06,195.75,195.73,36.18]
[1755232680431,0.06,195.75,195.74,8.23944107]
[1755232680728,0.06,195.75,195.73,36.18]
[1755232681129,0.06,195.75,195.74,8.23944107]
[1755232681525,0.06,195.75,195.74,13.34825888]
[1755232682226,0.06,195.75,195.74,28.45447445]
[1755232682419,0.06,195.75,195.74,29.19535623]
[1755232682622,0.06,195.75,195.74,28.96535623]
[1755232683334,0.06,195.75,195.74,29.19535623]
[1755232684721,0.06,195.77,195.75,15.10621557]
[1755232684913,0.06,195.77,195.76,44.39944107]
[1755232686018,0.06,195.77,195.76,49.50773694]
[1755232690238,0.06,195.77,195.76,41.26829587]
[1755232690528,0.75,195.77,195.76,49.50773694]
[1755232691726,0.75,195.77,195.76,41.26829587]
[1755232691949,0.75,195.77,195.76,49.50773694]
[1755232697119,0.75,195.77,195.76,5.10829587]
[1755232697319,0.75,195.77,195.76,41.24829587]
[1755232697515,0.06,195.77,195.76,49.48773694]
[1755232697819,0.06,195.77,195.76,41.24829587]
[1755232698023,0.06,195.77,195.76,49.48773694]
[1755232698224,0.75,195.77,195.76,49.48773694]
[1755232699223,0.06,195.77,195.76,49.48773694]
[1755232700023,0.75,195.77,195.76,49.48773694]
[1755232703951,0.06,195.77,195.76,49.48773694]
[1755232704127,0.06,195.77,195.76,65.33478209]
[1755232704128,1e-08,195.77,195.76,65.33478209]
[1755232704328,1e-08,195.77,195.76,64.59395251]
[1755232705352,1e-08,195.77,195.76,65.10478209]
[1755232706053,1e-08,195.77,195.76,65.33478209]
[1755232709545,1e-08,195.77,195.76,65.10478209]
[1755232710653,1e-08,195.77,195.76,65.33478209]
[1755232711845,1e-08,195.77,195.76,65.10478209]
[1755232712566,1e-08,195.79,195.78,41.10621557]
[1755232712761,1e-08,195.82,195.81,41.10621557]
[1755232712958,1e-08,195.85,195.84,41.10621557]
[1755232713155,1e-08,195.85,195.84,85.46565664]
[1755232714162,0.70000001,195.85,195.84,49.34565664]
[1755232714359,0.70000001,195.85,195.84,90.57186579]
[1755232715975,0.70000001,195.85,195.84,41.22620915]
[1755232716272,0.70000001,195.85,195.84,49.46565022]
[1755232717478,1e-08,195.85,195.84,64.57186579]
[1755232717882,1e-08,195.85,195.84,56.33242472]
[1755232718178,1e-08,195.85,195.84,64.57186579]
[1755232718678,0.70000001,195.85,195.84,64.57186579]
[1755232718871,1e-08,195.85,195.84,64.57186579]
[1755232719880,0.70000001,195.85,195.84,41.20620915]
[1755232720983,0.70000001,195.85,195.84,36.1]
[1755232721479,8.93944108,195.85,195.84,36.1]
[1755232721675,0.70000001,195.85,195.84,36.1]
[1755232721856,8.93944108,195.85,195.83,36.1]
[1755232722060,8.23944108,195.85,195.83,36.1]
[1755232722259,0.7,195.84,195.83,36.1]
[1755232724269,8.93944107,195.84,195.83,36.1]
[1755232724662,8.93944107,195.84,195.82,36.1]
[1755232724870,8.93944107,195.83,195.82,36.1]
[1755232725576,0.7,195.83,195.82,41.20673067]
[1755232725999,0.7,195.83,195.82,36.1]
[1755232728069,0.7,195.83,195.82,41.20673067]
[1755232728472,1e-08,195.85,195.82,49.44617174]
[1755232728671,1e-08,195.85,195.84,8.23944107]
[1755232728992,1e-08,195.85,195.84,44.33944107]
[1755232729562,1e-08,195.85,195.84,64.55186579]
[1755232729994,1e-08,195.85,195.84,64.78186579]
[1755232732083,1e-08,195.87,195.86,26.0]
[1755232732293,1e-08,195.87,195.86,85.44565664]
[1755232732573,1e-08,195.87,195.86,85.67565664]
[1755232733702,1e-08,195.87,195.86,90.78134437]
[1755232735468,1e-08,195.87,195.86,90.55134437]
[1755232736199,3.42180409,195.98,195.86,90.55134437]
[1755232736200,0.7,195.93,195.86,62.94991691]
[1755232736490,5.20181636,196.01,195.86,62.94991691]
[1755232736491,0.7,195.91,195.89,8.23944107]
[1755232736707,0.7,195.91,195.9,36.1]
[1755232737083,0.7,195.91,195.88,36.1]
[1755232737603,0.7,195.91,195.89,5.10490581]
[1755232739985,0.7,195.91,195.88,5.10514849]
[1755232740293,0.7,195.91,195.87,36.08]
[1755232740294,0.7,195.91,195.85,44.31944107]
[1755232740497,8.93944107,195.91,195.85,44.31944107]
[1755232740696,8.23944107,195.91,195.85,44.31944107]
[1755232740881,0.7,195.9,195.87,8.23944107]
[1755232741080,0.06,195.93,195.89,8.23944107]
[1755232741798,0.7,195.92,195.88,5.10516642]
[1755232742188,0.7,195.92,195.88,13.34460749]
[1755232743685,0.7,195.92,195.88,5.10516642]
[1755232744308,8.93944107,195.92,195.88,5.10516642]
[1755232744482,0.7,195.91,195.88,5.10516642]
[1755232747733,0.7,195.91,195.87,5.10542706]
[1755232748204,8.93944107,195.91,195.87,5.10542706]
[1755232748405,0.7,195.9,195.87,5.10542706]
[1755232748615,0.7,195.9,195.85,13.34513229]
[1755232750219,8.23944107,195.89,195.85,5.10569122]
[1755232750402,0.7,195.88,195.85,5.10569122]
[1755232750625,0.7,195.87,195.85,5.10569122]
[1755232751029,0.7,195.89,195.85,5.10569122]
[1755232751709,0.7,195.89,195.85,13.34513229]
[1755232751909,8.23944107,195.91,195.85,13.34513229]
[1755232752119,0.7,195.88,195.85,5.10569122]
[1755232752317,8.23944107,195.91,195.85,5.10569122]
[1755232752519,0.7,195.87,195.85,5.10569122]
[1755232754223,0.7,195.87,195.85,8.23944107]
[1755232755412,8.23944107,195.91,195.85,8.23944107]
[1755232755617,0.7,195.89,195.85,8.23944107]
[1755232755812,8.23944107,195.91,195.85,8.23944107]
[1755232756126,0.7,195.88,195.86,5.10568773]
[1755232756712,8.23944107,195.87,195.83,5.10622889]
[1755232756917,8.93944107,195.86,195.85,0.03]
[1755232757315,8.93944107,195.86,195.83,0.03]
[1755232757507,8.23944107,195.84,195.83,0.03]
[1755232758130,5.10646989,195.83,195.82,0.03]
[1755232758308,49.44591096,195.83,195.82,0.03]
[1755232758636,14.04591096,195.83,195.82,0.03]
[1755232758809,50.14591096,195.83,195.82,0.03]
[1755232759325,8.93944107,195.83,195.82,0.03]
[1755232759532,45.01944107,195.83,195.82,0.03]
[1755232760911,48.44601324,195.83,195.82,0.03]
[1755232761107,53.55248313,195.83,195.82,0.03]
[1755232763916,83.55248313,195.83,195.82,0.03]
[1755232764832,51.93566743,195.83,195.82,0.03]
[1755232765508,0.7,195.83,195.82,0.03]
[1755232765715,8.93944107,195.83,195.82,0.03]
[1755232765905,45.03944107,195.83,195.82,0.03]
[1755232768817,5.80542706,195.87,195.82,0.03]
[1755232769124,36.1,195.86,195.82,0.03]
[1755232769308,36.8,195.86,195.82,0.03]
[1755232769510,0.7,195.86,195.82,8.26944107]
[1755232769715,36.1,195.85,195.82,8.55944107]
[1755232769927,36.1,195.84,195.82,0.03]
[1755232770128,8.93944107,195.87,195.82,8.26944107]
[1755232770330,36.1,195.86,195.82,8.26944107]
[1755232771042,0.72,195.85,195.82,0.03]
[1755232771816,36.1,195.84,195.82,0.03]
[1755232774845,36.82,195.84,195.82,0.03]
[1755232775525,0.72,195.84,195.82,0.03]
[1755232775724,36.82,195.84,195.82,0.03]
[1755232776840,36.1,195.84,195.82,0.03]
[1755232777041,0.72,195.83,195.82,0.03]
[1755232777240,8.95944107,195.83,195.82,0.03]
[1755232778138,0.72,195.83,195.82,0.03]
[1755232778346,5.197722,195.89,195.82,0.03]
[1755232778347,0.06,195.89,195.82,8.55944107]
[1755232778550,0.06,195.89,195.85,8.23944107]
[1755232778845,0.06,195.89,195.85,13.34522641]
[1755232779158,0.06,195.89,195.83,8.23944107]
[1755232779159,0.72,195.88,195.83,8.23944107]
[1755232779348,36.12,195.87,195.83,8.23944107]
[1755232779549,36.12,195.87,195.83,8.52944107]
[1755232780446,36.12,195.87,195.84,13.34557434]
[1755232781849,0.72,195.88,195.84,13.34557434]
[1755232782049,36.1,195.87,195.84,13.34557434]
[1755232782551,36.82,195.87,195.84,13.34557434]
[1755232783042,0.72,195.86,195.83,8.23944107]
[1755232783233,8.23944107,195.85,195.82,0.03]
[1755232783428,36.1,195.84,195.82,0.03]
[1755232783647,36.82,195.84,195.82,0.03]
[1755232783842,0.72,195.83,195.82,0.03]
[1755232784350,0.72,195.87,195.82,8.26944107]
[1755232784649,36.82,195.86,195.82,5.13673067]
[1755232785350,0.72,195.85,195.82,5.13673067]
[1755232785928,8.95944107,195.87,195.82,5.13673067]
[1755232786429,36.1,195.86,195.82,13.37617174]
[1755232787452,36.82,195.86,195.82,13.37617174]
[1755232788046,36.82,195.86,195.82,5.13673067]
[1755232788650,0.72,195.85,195.82,5.13673067]
[1755232789246,36.1,195.86,195.82,5.13673067]
[1755232789545,36.82,195.86,195.82,13.37617174]
[1755232791550,0.72,195.85,195.82,13.37617174]
[1755232791939,36.82,195.85,195.82,13.37617174]
[1755232793260,36.1,195.85,195.82,13.37617174]
[1755232793557,0.06,195.86,195.82,13.37617174]
[1755232793740,0.78,195.86,195.82,13.37617174]
[1755232793934,36.88,195.86,195.82,13.37617174]
[1755232794948,0.72,195.85,195.82,13.37617174]
[1755232795533,0.72,195.85,195.82,0.03]
[1755232797055,0.72,195.84,195.83,5.10646989]
[1755232800142,0.72,195.84,195.82,5.13668482]
[1755232800465,0.72,195.83,195.82,5.13668482]
[1755232801034,36.14,195.86,195.82,5.13668482]
[1755232801035,0.72,195.85,195.82,5.13668482]
[1755232801234,0.72,195.85,195.82,13.37612589]
[1755232801542,36.14,195.86,195.82,5.13668482]
[1755232801863,0.72,195.84,195.82,5.13668482]
[1755232802062,36.14,195.86,195.82,5.13668482]
[1755232802359,0.72,195.83,195.82,5.13668482]
[1755232807070,0.72,195.83,195.82,0.03]
[1755232808360,0.06,195.84,195.82,0.03]
[1755232808664,0.72,195.83,195.82,0.03]
[1755232809957,0.78,195.84,195.82,0.03]
[1755232811347,0.72,195.83,195.82,0.03]
[1755232813964,180.38101232,195.83,195.82,0.03]
[1755232814176,185.48748221,195.83,195.82,0.03]
[1755232814357,185.48748221,195.83,195.8,0.03]
[1755232814358,57.4114705,195.83,195.8,0.03]
[1755232814563,8.23944107,195.81,195.8,0.03]
[1755232814739,11.68101232,195.81,195.8,0.03]
[1755232814940,4.16157125,195.81,195.8,0.03]
[1755232815339,0.72,195.81,195.8,0.03]
[1755232815551,4.16057155,195.81,195.8,0.03]
[1755232815946,131.9,195.82,195.8,8.26944107]
[1755232816144,131.9,195.82,195.81,8.23944107]
[1755232816563,131.9,195.82,195.8,8.26944107]
[1755232817156,131.9,195.82,195.81,5.10699147]
[1755232819852,132.62,195.82,195.81,5.10699147]
[1755232822383,132.62,195.82,195.8,5.13720827]
[1755232822566,0.72,195.81,195.8,5.13720827]
[1755232824585,131.9,195.82,195.8,5.13720827]
[1755232824879,132.62,195.82,195.8,5.13720827]
[1755232825453,132.68,195.82,195.8,13.37664934]
[1755232825748,131.96,195.82,195.8,13.37664934]
[1755232826373,0.06,195.82,195.81,8.23944107]
[1755232827474,0.06,195.82,195.81,13.34643254]
[1755232836082,0.75,195.82,195.81,13.34643254]
[1755232836475,0.75,195.82,195.8,0.03]
[1755232838673,42.08908826,195.82,195.8,0.03]
[1755232838870,8.70131798,195.81,195.8,0.03]
[1755232839064,9.39131798,195.81,195.8,0.03]
[1755232840583,4.13222972,195.81,195.8,0.03]
[1755232843594,40.21222972,195.81,195.8,0.03]
[1755232847291,48.4320917,195.81,195.8,0.03]
[1755232847489,3.44222972,195.81,195.8,0.03]
[1755232847696,0.06,195.82,195.8,8.56986198]
[1755232847878,0.06,195.82,195.81,8.21986198]
[1755232849991,0.06,195.82,195.81,13.32685345]
[1755232860607,0.06,195.82,195.81,10.36367253]
[1755232869336,0.06,195.84,195.81,25.7898881]
[1755232869635,0.06,195.84,195.83,5.25668106]
[1755232870711,0.75,195.84,195.81,7.15245147]
[1755232870918,0.75,195.84,195.83,5.25668106]
[1755232871522,0.75,195.84,195.83,10.36315095]
[1755232872827,0.06,195.84,195.83,10.36315095]
[1755232876315,0.06,195.86,195.85,5.25668106]
[1755232877556,0.75,195.92,195.86,15.10621557]
[1755232877718,0.06,195.92,195.89,10.36158687]
[1755232878532,0.75,195.92,195.89,10.36158687]
[1755232878846,0.75,195.92,195.89,13.31047862]
[1755232886448,0.06,195.92,195.89,13.31047862]
[1755232886754,0.75,195.91,195.89,13.31047862]
[1755232887645,0.06,195.91,195.89,13.31047862]
[1755232887837,0.06,195.91,195.9,70.24557281]
[1755232888733,0.06,195.91,195.9,90.4564336]
[1755232889053,0.06,195.93,195.92,15.10621557]
[1755232889235,0.06,195.93,195.92,59.35178838]
[1755232889747,0.06,195.93,195.92,59.67178838]
[1755232889956,0.06,195.94,195.92,59.67178838]
[1755232890635,0.06,195.94,195.93,5.10386362]
[1755232891653,0.06,195.94,195.93,13.30943643]
[1755232892228,0.75,195.94,195.93,13.30943643]
[1755232892429,0.75,195.94,195.93,5.10386362]
[1755232893243,0.75,195.94,195.93,13.30943643]
[1755232896769,0.75,195.94,195.92,36.04]
[1755232897066,8.95557281,195.94,195.9,36.02]
[1755232897261,0.69,195.93,195.9,36.02]
[1755232897638,0.69,195.93,195.9,44.22557281]
[1755232898063,0.69,195.93,195.92,8.20557281]
[1755232899051,0.69,195.93,195.92,13.30969694]
[1755232899252,0.69,195.93,195.92,5.10412413]
[1755232899464,0.69,195.93,195.9,36.02]
[1755232899668,0.69,195.93,195.88,41.12516642]
[1755232899669,8.89557281,195.93,195.88,41.12516642]
[1755232899865,0.69,195.92,195.88,41.12516642]
[1755232900051,0.69,195.92,195.88,49.33073923]
[1755232900250,0.69,195.91,195.89,8.20557281]
[1755232900448,0.69,195.9,195.89,8.20557281]
[1755232901076,0.69,195.92,195.9,5.10464522]
[1755232901278,0.69,195.92,195.9,13.31021803]
[1755232901579,0.69,195.92,195.9,41.12464522]
[1755232901752,0.69,195.91,195.9,41.12464522]
[1755232902961,0.69,195.93,195.9,41.12464522]
[1755232903153,0.69,195.92,195.9,41.12464522]